Cogmind - Beta 10.2 @@@ ROGUE MODE // 2021.09.28 @ 00:00:46 Player: Jezoensis Result: Destroyed by D-53 Grenadier with Mini Grenade Launcher Performance ------------- Evolutions (0) 0 Regions Visited (4) 800 Robots Destroyed (14) 70 Value Destroyed (160) 160 Prototype IDs (23) 460 Alien Tech Used (0) 0 Bonus (300) 300 TOTAL SCORE: 1790 Bonus ------- Aligned with FarCom 300 Cogmind --------- Core Integrity 0/250 Matter 295/300 Energy 98/100 System Corruption 1% Temperature Cool (1) Movement Walking (180) Ox2 Location -9/Mines Parts ------- > --- POWER (1) -------- (None) > --- PROPULSION (2) --- Aluminum Leg > --- UTILITY (2) ------ Medium Storage Unit Large Storage Unit > --- WEAPON (2) ------- (None) > --- INVENTORY (14) --- Flying Fortress v7 Large Storage Unit High-capacity Matter Pod (200) Improved Terrain Scanner Assault Rifle Assault Rifle Rocket Launcher Mining Laser Peak State ------------ > --- POWER ------------ Ion Engine > --- PROPULSION ------- Aluminum Leg Aluminum Leg > --- UTILITY ---------- Large Storage Unit Improved Terrain Scanner > --- WEAPON ----------- Medium Laser Assault Rifle > --- INVENTORY -------- Ion Engine Flying Fortress v7 Medium Storage Unit Large Storage Unit Assault Rifle Assault Rifle Mining Laser [Rating: 11] Favorites ----------- Power Ion Engine Engine Ion Engine Propulsion Aluminum Leg Leg Aluminum Leg Utility Improved Terrain Scanner Device Improved Terrain Scanner Storage Medium Storage Unit Weapon Assault Rifle Energy Gun EM Pulse Gun Ballistic Gun Assault Rifle Build | -11 -10 -10 -10 -9 ------- Run | Scr Mat Min Exi Min Slots Evolved . | . . . . . Power . | . . . . . Propulsion . | . . . . . Utility . | . . . . . Weapon . | . . . . . Parts Attached 15 | 7 3 . 2 3 Power 2 | 1 1 . . . Engine 2 | 1 1 . . . Core . | . . . . . Reactor . | . . . . . Propulsion 4 | 2 . . . 2 Treads . | . . . . . Leg 4 | 2 . . . 2 Wheel . | . . . . . Hover . | . . . . . Flight . | . . . . . Utility 6 | 2 2 . 1 1 Device 2 | 1 1 . . . Storage 4 | 1 1 . 1 1 Processor . | . . . . . Hackware . | . . . . . Protection . | . . . . . Artifact . | . . . . . Weapon 3 | 2 . . 1 . Energy Gun 2 | 1 . . 1 . Energy Cannon . | . . . . . Ballistic Gun 1 | 1 . . . . Ballistic Cannon . | . . . . . Launcher . | . . . . . Special Weapon . | . . . . . Impact Weapon . | . . . . . Slashing Weapon . | . . . . . Piercing Weapon . | . . . . . Special Melee Weapon . | . . . . . Unidentified Prototypes . | . . . . . Parts Lost 6 | . . . . 6 Power 1 | . . . . 1 Propulsion 3 | . . . . 3 Utility . | . . . . . Weapon 2 | . . . . 2 Highest Loss Streak 5 | . . . . 5 Average Slot Usage (%) 98 | . 98 100 99 97 Engine 13 | . 14 14 14 13 Leg 27 | . 28 28 28 26 Device 10 | . 12 14 14 1 Storage 17 | . 14 14 14 26 Energy Gun 13 | . 14 14 13 13 Ballistic Gun 14 | . 14 14 14 14 Naked Turns . | . . . . . Heaviest Build 33 | 12 18 18 26 33 Greatest Support 20 | 20 20 20 20 20 Greatest Overweight (x) 2 | . . . 1 2 Average Overweight (x) . | . . . . 1 Largest Inventory Capacity 14 | 6 10 8 10 14 Average Capacity 9 | 5 7 8 9 13 Most Carried 12 | 4 7 7 10 12 Average Carried 7 | 2 3 7 8 11 Final Capacity 14 | 6 8 8 10 14 Final Carried 11 | 3 7 7 10 11 Class Distribution -------------------- 97% | Mutant Dominant Class ---------------- Mutant | -10/Materials Mutant | -10/Mines Mutant | -10/Exiles Mutant | -9/Mines Resources | -11 -10 -10 -10 -9 ----------- Run | Scr Mat Min Exi Min Matter Collected 456 | 295 73 . 20 68 Remotely . | . . . . . Salvage Created 400 | 148 146 . . 106 Parts 34 | 11 17 . . 6 Haulers Intercepted 1 | . 1 . . . Recyclers Shooed 1 | . . . . 1 Parts Field Recycled . | . . . . . Retrieved Matter . | . . . . . Parts Self-Destructed . | . . . . . Prevented . | . . . . . Kills | -11 -10 -10 -10 -9 ------- Run | Scr Mat Min Exi Min Combat Hostiles Destroyed 5 | . 3 . . 2 Guns 5 | . 3 . . 2 Classes Destroyed 7 | 3 3 . . 1 Worker 1 | 1 . . . . Builder 1 | . 1 . . . Tunneler 5 | 3 1 . . 1 Hauler 1 | . 1 . . . Recycler 1 | 1 . . . . Swarmer 3 | . 3 . . . Grunt 2 | . . . . 2 Best Kill Streak 3 | 3 3 . . 2 Combat Bots Only 3 | . 3 . . 2 Max Kills in Single Turn 2 | 1 2 . . 1 Gunslinging 1 | . 1 . . . Exploded . | . . . . . Melee . | . . . . . Uniques/NPCs Destroyed . | . . . . . Combat | -11 -10 -10 -10 -9 -------- Run | Scr Mat Min Exi Min Damage Taken 896 | 34 166 . . 696 Core 285 | 34 8 . . 243 Absorbed by Shields . | . . . . . Core Remaining (%) 86 | 86 . . . . Volleys Fired 40 | 17 7 . . 16 Largest 2 | 2 2 . . 2 Hottest 70 | 60 60 . . 70 Shots Fired 80 | 34 14 . . 32 Gun 80 | 34 14 . . 32 Cannon . | . . . . . Launcher . | . . . . . Special . | . . . . . Kinetic 40 | 17 7 . . 16 Thermal 16 | . . . . 16 Explosive . | . . . . . Electromagnetic 24 | 17 7 . . . Robot Hit Streak 7 | 7 4 . . 7 Robot Miss Streak 3 | 3 1 . . 2 Penetration Max . | . . . . . Secondary Targets 2 | . 2 . . . Max Gunslinging Chain 1 | . 1 . . . Shots Hit Robots 51 | 21 8 . . 22 Core Hits 18 | 6 6 . . 6 Critical Hits . | . . . . . Critical Kills . | . . . . . Critical Parts Destroyed . | . . . . . Melee Attacks . | . . . . . Impact . | . . . . . Slashing . | . . . . . Piercing . | . . . . . Sneak Attacks . | . . . . . Combat Hostiles . | . . . . . Follow-up Attacks . | . . . . . Damage Inflicted 671 | 301 88 . . 282 Guns 633 | 265 86 . . 282 Cannons . | . . . . . Explosions 36 | 36 . . . . Melee . | . . . . . Ramming 2 | . 2 . . . Kinetic 265 | 70 39 . . 156 Thermal 162 | 36 . . . 126 Explosive . | . . . . . Electromagnetic 242 | 195 47 . . . Impact . | . . . . . Slashing . | . . . . . Piercing . | . . . . . Highest Corruption 1 | . 1 1 1 1 Average Corruption 1 | . 1 1 1 1 Corruption Purged . | . . . . . Overload Shots . | . . . . . Overflow Damage . | . . . . . Projectiles . | . . . . . Explosions . | . . . . . Melee . | . . . . . Knockbacks . | . . . . . Impact . | . . . . . Kinetic . | . . . . . Secondary . | . . . . . Self-Inflicted Damage 35 | 34 1 . . . Shots 1 | 1 . . . . Rammed 1 | . 1 . . . Targets Rammed 1 | . 1 . . . Kicked . | . . . . . Crushed . | . . . . . Highest Temperature 162 | 12 . . . 162 Average Temperature 52 | 12 . . . 56 Received Heat Transfer 90 | . . . . 90 Siege Activations . | . . . . . Robots Corrupted . | . . . . . Combat Hostiles . | . . . . . Parts Fried 2 | 2 . . . . Impact Corruptions . | . . . . . Robots Melted . | . . . . . Combat Hostiles . | . . . . . Parts Melted . | . . . . . Heat Transferred 420 | 50 . . . 370 Parts Sabotaged . | . . . . . Parts Stolen . | . . . . . Parts Stripped . | . . . . . Power Chain Reactions 1 | 1 . . . . Missiles Intercepted . | . . . . . Alert | -11 -10 -10 -10 -9 ------- Run | Scr Mat Min Exi Min Peak Influence 157 | 25 157 61 . 60 Initial 61 | . 16 61 . . Average 65 | 7 98 61 . 53 Maximum Alert Level . | . . . . . Low Security (%) 100 | 100 100 100 . 100 Level 1 . | . . . . . Level 2 . | . . . . . Level 3 . | . . . . . Level 4 . | . . . . . Level 5 . | . . . . . High Security . | . . . . . Max Security . | . . . . . Squads Dispatched . | . . . . . Investigation . | . . . . . Extermination . | . . . . . Reinforcement . | . . . . . Assault . | . . . . . Garrison . | . . . . . Intercept . | . . . . . Construction Impeded . | . . . . . Haulers Reinforced . | . . . . . Stealth | -11 -10 -10 -10 -9 --------- Run | Scr Mat Min Exi Min Distress Signals . | . . . . . Communications Jammed . | . . . . . Distress Signals . | . . . . . Times Spotted 6 | . 3 . . 3 Peak Tracking Total 3 | . 3 . . 3 Tactical Retreats . | . . . . . Traps | -11 -10 -10 -10 -9 ------- Run | Scr Mat Min Exi Min Traps Triggered 3 | . 3 . . . Indirectly . | . . . . . Trap Hack Attempts . | . . . . . Triggered . | . . . . . Disarmed . | . . . . . Reprogrammed . | . . . . . Reused . | . . . . . Traps Extracted . | . . . . . Installed . | . . . . . Triggered . | . . . . . Machines | -11 -10 -10 -10 -9 ---------- Run | Scr Mat Min Exi Min Machines Disabled . | . . . . . Max in Single Turn . | . . . . . Machines Sabotaged . | . . . . . Garrisons Compromised . | . . . . . Overloaded Fab Kills . | . . . . . Fab Network Shutdowns . | . . . . . Hacking | -11 -10 -10 -10 -9 --------- Run | Scr Mat Min Exi Min Machines Accessed 6 | . 5 . 1 . Terminals 4 | . 4 . . . Fabricators . | . . . . . Repair Stations . | . . . . . Recycling Units 1 | . 1 . . . Scanalyzers . | . . . . . Garrison Access . | . . . . . Total Hacks 16 | . 15 . 1 . Successful 11 | . 10 . 1 . Failed 5 | . 5 . . . Catastrophic . | . . . . . Database Lockouts . | . . . . . Manual 14 | . 13 . 1 . Terminals 13 | . 13 . . . Fabricators . | . . . . . Repair Stations . | . . . . . Recycling Units 2 | . 2 . . . Scanalyzers . | . . . . . Garrison Access . | . . . . . Terminal Hacks 6 | . 5 . 1 . Part Schematic 2 | . 2 . . . Robot Analysis 2 | . 2 . . . Terminal Index 1 | . 1 . . . EX-Prototype ID Bank 1 | . . . 1 . Fabricator Hacks . | . . . . . Repair Station Hacks . | . . . . . Recycling Unit Hacks . | . . . . . Scanalyzer . | . . . . . Garrison Access Hacks . | . . . . . Unauthorized Hacks 5 | . 5 . . . Terminals 3 | . 3 . . . Track 1 | . 1 . . . Botnet 2 | . 2 . . . Fabricators . | . . . . . Repair Stations . | . . . . . Recycling Units 2 | . 2 . . . Reject 1 | . 1 . . . Recyclers 1 | . 1 . . . Scanalyzers . | . . . . . Garrison Access . | . . . . . Data Cores Recovered . | . . . . . Used . | . . . . . Hacking Detections 4 | . 4 . . . Full Trace Events . | . . . . . Feedback Events . | . . . . . Feedback Blocked . | . . . . . Robot Schematics Acquired . | . . . . . Robots Built . | . . . . . Matter . | . . . . . Time . | . . . . . Total Robot Build Rating . | . . . . . Part Schematics Acquired 2 | . 2 . . . Parts Built . | . . . . . Matter . | . . . . . Time . | . . . . . Total Part Build Rating . | . . . . . Parts Repaired . | . . . . . Time . | . . . . . Parts Recycled . | . . . . . Recycled Matter . | . . . . . Retrieved Matter . | . . . . . Retrieved Components . | . . . . . Parts Scanalyzed . | . . . . . Part Schematics Acquired . | . . . . . Parts Damaged . | . . . . . Bothacking | -11 -10 -10 -10 -9 ------------ Run | Scr Mat Min Exi Min Used RIF Installer . | . . . . . Robots Hacked . | . . . . . Non-combat . | . . . . . Combat . | . . . . . Robot Hacks Applied . | . . . . . Relay Couplers Released . | . . . . . Robots Rewired . | . . . . . Allies Hacked . | . . . . . Hacks Repelled . | . . . . . Allies | -11 -10 -10 -10 -9 -------- Run | Scr Mat Min Exi Min Total Allies 2 | . . 2 . . Largest Group 2 | . . 2 2 . Highest-Rated Group 40 | . . 40 40 . Highest-Rated Ally 31 | . . 31 31 . Total Orders . | . . . . . Ally Attacks . | . . . . . Total Damage . | . . . . . Kills . | . . . . . Allies Corrupted . | . . . . . Allies Melted . | . . . . . Intel | -11 -10 -10 -10 -9 ------- Run | Scr Mat Min Exi Min Robot Analysis Total 2 | . 2 . . . Derelict Logs Recovered 1 | . . 1 . . Drone Launches . | . . . . . Drone Recoveries . | . . . . . Exploration | -11 -10 -10 -10 -9 ------------- Run | Scr Mat Min Exi Min Turns Passed 1298 | 104 319 205 332 338 Spaces Moved 869 | 39 233 169 240 188 Core 12 | 12 . . . . Treads . | . . . . . Legs 857 | 27 233 169 240 188 Wheels . | . . . . . Hover . | . . . . . Flight . | . . . . . Fastest Speed 50 | 50 120 120 120 150 Average Speed 130 | 98 120 120 136 151 Slowest Speed 180 | 120 120 120 150 180 Overloaded Moves . | . . . . . Propulsion Burnouts . | . . . . . Robots Hopped . | . . . . . Cave-ins Triggered . | . . . . . Exploration Rate (%) 44 | 4 48 47 68 53 Regions Visited 4 Branch Regions 3 Pre-discovered Areas 1 | . . 1 . . Known Exits Taken . | . . . . . Unknown Exits Taken 4 | 1 1 1 1 . Scrap Searched 1 | . . 1 . . Spaces Dug . | . . . . . Terrain Destroyed 4 | 4 . . . . Melee . | . . . . . Projectile . | . . . . . AOE 4 | 4 . . . . Terrain Rammed . | . . . . . Walls Destroyed . | . . . . . Machines Disabled . | . . . . . Actions | -11 -10 -10 -10 -9 --------- Run | Scr Mat Min Exi Min Total 953 | 68 260 171 245 209 Wait 6 | . 3 3 . . Move 865 | 38 232 168 239 188 Hop . | . . . . . Pick Up 17 | 6 7 . 2 2 Fast Attach 6 | 4 1 . . 1 Attach 6 | 3 1 . 1 1 Detach 2 | . 2 . . . Swap 3 | . 1 . 1 1 Drop 7 | . 5 . 2 . Fire 40 | 17 7 . . 16 Melee . | . . . . . Ram . | . . . . . Kick 1 | . 1 . . . Crush . | . . . . . Escape Stasis . | . . . . . Rewire . | . . . . . Trap . | . . . . . Miscellaneous . | . . . . . Route ------- -11/Scrapyard -10/Materials (discovered 2 exits: [*Mat] / [*Min]) -10/Mines -10/Exiles -9/Mines History --------- Turn | Location | Event 13 | -11/Scrapyard | Discovered new exit (range 14) 105 | -11/Scrapyard | Entered Materials 305 | -10/Materials | Build established: Mutant 307 | -10/Materials | Discovered new exit (range 8) 334 | -10/Materials | Discovered new exit (range 14) 424 | -10/Materials | Entered Mines 576 | -10/Mines | Learned location of Storage (-9) 620 | -10/Mines | Deemed a non-threat by the Exiles lab entrance 620 | -10/Mines | Discovered new exit (range 5) 629 | -10/Mines | Entered Exiles 629 | -10/Exiles | Accompanied by 2 allies 658 | -10/Exiles | Met 8R-AWN 659 | -10/Exiles | Led the pair of lost Derelicts to a safe place 680 | -10/Exiles | Met EX-HEX 712 | -10/Exiles | Met EX-BIN 725 | -10/Exiles | Aligned with FarCom system 727 | -10/Exiles | Given EX-Vault access code 754 | -10/Exiles | Opened EX-Vault 767 | -10/Exiles | Found Flying Fortress v7 799 | -10/Exiles | Warned to stay clear of 0b10 Research branches 886 | -10/Exiles | Met EX-DEC 945 | -10/Exiles | Discovered new exit (range 14) 961 | -10/Exiles | Left Exiles lab with Flying Fortress v7 961 | -10/Exiles | Entered Mines 1249 | -9/Mines | Assembled infested the area 1273 | -9/Mines | Core integrity fell below 50% 1294 | -9/Mines | Core integrity fell below 20% 1299 | -9/Mines | Destroyed by D-53 Grenadier with Mini Grenade Launcher Last Messages --------------- 01067_ T-07 Excavator destroyed. 01079_ Acquired 6 matter. 01115_ Acquired Rocket Launcher. 01246_ Acquired 3 matter. 01249_ ALERT: Infestation in the mines, dispatching Demolisher response squad. 01268_ C-30 ARC bursts open, deploying its payload. 01268_ D-53 Grenadier unfolds itself. 01268_ Aluminum Leg destroyed. 01268_ A-02 Transporter destroyed. 01270_ K-01 Serf destroyed. 01274_ Aluminum Leg destroyed. 01280_ Ion Engine destroyed. 01285_ U-05 Engineer builds a Wall. 01289_ Med. Laser destroyed. 01289_ U-05 Engineer builds a Wall. 01291_ Assault Rifle destroyed. 01293_ U-05 Engineer lays Concrete. 01293_ U-05 Engineer destroyed. 01297_ The unstable cave ceiling collapses. Map ----- +----------------------------------------------------+ | ########## ###?????????# #?????????? | | #?????????# #?????????? | | # ############ #?????????# #?????????? | | ### ## #??????????# #?????????# #?????????? | | ??###### #??????????# #?????????# #?????????? | | ???????# #??????????# #########?# #?????????? | | ???????# #??????????# #?????????? | | ???????# #??????????###########?# #?????????? | | ???????# #???????##?????????????? ??????????? | | ???????# #??????# #?????????????? ??????????? | | ???????# #?????# #??????????????#??????????? | | ???????# #???## #?????????????????????????? | | ???????# #??## #??????????????????????????? | | ???????# #### #???????????ss??????????????? | | ???????# ## ##???????????s???????????????? | | ???????# # #####????????????????????????? | | ???????# ## ##???????????????????????? | | ???????#### ###??##?????????????????? | | ??????????# # ##? ?????????????????? | | ??????????# # ##u#?????????????????? | | ?????????## # #?????????????????? | | ??????#### # #?????????????????? | | ?????##% #?????????????????? | | ????##! ##????????????????? | | ????# / ## d =! #????????????????? | | ????# #### @ #????????????????? | | ????## # ###??# # ##????????????????? | | ?????## ??????# ## #?????????????????? | | ??????# #?????? "## # #?????????????????? | | ?????? ????? %" ########?????????????????? | | ??????## ???? ######????????????????????????? | | ???????? #?? ? ??????????????????????????????? | | ???????? #? ?? ??????????????????????????????? | | ???????? # ?? ???????????????????????????????? | | ???????? ??? ???????????????????????????????? | | ???????? ???????????????????????????????????? | | ???????? ???????????????????????????????????? | | ???????? ??????????????????????????????????? | | ?????????? ??????????????????????????????????? | | ?????????????????????????????????????????????? | | ?????????????????????????????????????????????? | | ?????????????????????????????????????????????? | | ?????????????????????????????????????????????? | | ?????????????????????????????????????????????? | | ?????????????????????????????????????????????? | | ?????????????????????????????????????????????? | | ?????????????????????????????????????????????? | | ?????????????????????????????????????????????? | | ?????????????????????????????????????????????? | | ?????????????????????????????????????????????? | +----------------------------------------------------+ Best States ------------- Heat Dissipation 25 Energy Generation 10 Energy Capacity 250 Matter Stores 300 Matter Capacity 300 Sight Range 16 Terrain Scan Range 16 Terrain Scan Density 10 Evasion (%) 40 Item Schematics ----------------- Hcp. Storage Unit | -10/Materials | Hacked ECM Suite | -10/Materials | Hacked Robot Schematics ------------------ None Fabricated ------------ Nothing Alien Tech Used ----------------- None Achievements -------------- None Challenges ------------ None Game ------ Seed MicroFusionMachine Manual? 0 Play Time 00:12:23 Cumulative 323.7 hours Start 2021.09.27 @ 23:48:27 End 2021.09.28 @ 00:00:46 Sessions 1 Manual Loads 0 Difficulty Rogue Special Mode None Game No. 145 Rogue 30 Adventurer 113 Explorer 2 Win Type - Total 25 Types 22/2/0/0/0/0/0/0/1 Lore% 49 Gallery% 79 Achievement% 55 Wizard Run 0 Options --------- ASCII 0 Keyboard 1 Movement Numpad Keybinds 0 Fullscreen 1 Font 36/TerminusFine Map View 76x50 Tactical HUD 1 Map Filters NONE Filters NONE Steam 1 RUN: a131d22c-7139-4796-8f22-716665e00369